bitfinex/quotes_BTCUSD_20220111
["timestamp","ask_amount","ask_price","bid_price","bid_amount"]
[1641860960847,0.465,41719.0,41718.0,0.32336068]
[1641860961246,0.465,41719.0,41716.0,0.148]
[1641860961445,0.465,41719.0,41718.0,0.007]
[1641860962647,0.86824867,41719.0,41716.0,0.048]
[1641860963294,0.86824867,41719.0,41716.0,0.054]
[1641860963694,0.86824867,41719.0,41716.0,0.006]
[1641860964296,1.17956793,41719.0,41716.0,0.006]
[1641860964497,1.28082673,41719.0,41716.0,0.006]
[1641860964702,0.9,41718.0,41694.0,0.048]
[1641860964899,0.001278,41714.0,41709.0,0.00085945]
[1641860965099,0.048,41713.0,41709.0,0.00085945]
[1641860965295,0.4325679,41710.0,41709.0,0.00085945]
[1641860965496,0.88379089,41710.0,41709.0,0.00085945]
[1641860965795,0.78379089,41710.0,41709.0,0.00085945]
[1641860965996,0.24621107,41703.0,41697.0,0.40553098]
[1641860966196,0.24621107,41703.0,41698.0,0.00343833]
[1641860967151,0.24621107,41703.0,41697.0,0.40553098]
[1641860967352,0.25421107,41703.0,41698.0,0.01485949]
[1641860968448,0.25421107,41703.0,41698.0,0.014]
[1641860968649,0.25421107,41703.0,41698.0,0.01485949]
[1641860968851,0.24621107,41703.0,41698.0,0.00085949]
[1641860969449,0.25421107,41703.0,41698.0,0.01385949]
[1641860969652,0.25421107,41703.0,41698.0,0.013]
[1641860969853,0.008,41703.0,41698.0,0.01385949]
[1641860970695,0.17746049,41707.0,41697.0,0.40553098]
[1641860970895,0.26966509,41706.0,41697.0,0.40553098]
[1641860971195,0.26966509,41706.0,41698.0,0.00085949]
[1641860971396,0.27566509,41706.0,41698.0,0.00085949]
[1641860971997,0.27566509,41706.0,41697.0,0.42553098]
[1641860972199,0.27566509,41706.0,41700.0,0.00085948]
[1641860972597,0.26966509,41706.0,41700.0,0.00085948]
[1641860973198,0.26966509,41706.0,41697.0,0.45553098]
[1641860973398,0.27466509,41706.0,41701.0,0.00085947]
[1641860974343,0.27466509,41706.0,41700.0,0.02]
[1641860974544,0.26966509,41706.0,41701.0,0.00085946]
[1641860975347,0.27466509,41706.0,41701.0,0.01985946]
[1641860975545,0.27466509,41706.0,41701.0,0.019]
[1641860975746,0.27466509,41706.0,41701.0,0.01985946]
[1641860976345,0.27466509,41706.0,41704.0,0.33690625]
[1641860976546,0.18468377,41707.0,41704.0,0.33690625]
[1641860979197,0.25020168,41706.0,41698.0,0.28316042]
[1641860979396,0.19468377,41707.0,41704.0,0.02]
[1641860981200,0.18468377,41707.0,41703.0,0.00085944]
[1641860981397,0.19468377,41707.0,41704.0,0.02]
[1641860982451,0.19468377,41707.0,41704.0,0.3097194]
[1641860982655,0.18468377,41707.0,41705.0,0.27617546]
[1641860982852,0.18468377,41707.0,41704.0,0.2897194]
[1641860983061,0.18468377,41707.0,41705.0,0.32603529]
[1641860983352,0.18468377,41707.0,41706.0,1.61549841]
[1641860983551,0.00722328,41707.0,41706.0,2.03897341]
[1641860985307,0.00722328,41707.0,41706.0,0.73897341]
[1641860985701,0.00722328,41707.0,41706.0,1.08897341]
[1641860987302,0.00722328,41707.0,41706.0,0.73897341]
[1641860988505,0.00079541,41715.0,41706.0,0.88697341]
[1641860988706,0.465,41719.0,41709.0,0.059941]
[1641860988907,0.465,41719.0,41711.0,0.05993218]
[1641860989151,0.00079541,41715.0,41712.0,0.31264754]
[1641860989347,0.00079541,41715.0,41713.0,0.048]
[1641860989547,0.00079541,41715.0,41713.0,0.37125978]
[1641860989749,0.00079541,41715.0,41713.0,0.048]
[1641860989948,0.29066095,41716.0,41713.0,0.048]
[1641860990146,0.29145656,41716.0,41713.0,0.048]
[1641860991151,0.29066095,41716.0,41713.0,0.048]
[1641860991349,0.32101201,41715.0,41713.0,0.048]
[1641860991549,0.32101201,41715.0,41713.0,0.054]
[1641860991751,0.37161695,41716.0,41713.0,0.006]
[1641860992153,0.6690956,41715.0,41713.0,0.006]
[1641860992354,0.83722482,41714.0,41713.0,0.006]
[1641860992553,0.48722482,41714.0,41713.0,0.006]
[1641860992808,0.059965,41713.0,41709.0,0.00085942]
[1641860993397,0.18470569,41710.0,41709.0,0.00085942]
[1641860993599,0.18470569,41710.0,41702.0,0.71092445]
[1641860993798,0.33076391,41706.0,41702.0,0.71092445]
[1641860993999,0.33076391,41706.0,41702.0,0.42556472]
[1641860994899,0.60046936,41705.0,41702.0,0.42556472]
[1641860995099,0.60046936,41705.0,41702.0,0.42642418]
[1641860995300,0.60046936,41705.0,41702.0,0.00085946]
[1641860995500,0.61546936,41705.0,41702.0,0.00285946]
[1641860995702,0.3175322,41705.0,41702.0,0.00285946]
[1641860996200,0.015,41705.0,41702.0,0.002]
[1641860996748,0.33076391,41706.0,41701.0,0.435791]
[1641860997150,0.33076391,41706.0,41701.0,0.43493154]
[1641860997348,0.33076391,41706.0,41701.0,0.435791]
[1641860997547,0.33076391,41706.0,41701.0,0.436791]
[1641860997947,0.33076391,41706.0,41701.0,0.00185946]
[1641860998149,0.30341755,41705.0,41701.0,0.00185946]
[1641860998357,0.30341755,41705.0,41701.0,0.001]
[1641860998552,0.30341755,41705.0,41701.0,0.00185946]
[1641860998850,0.39073491,41706.0,41701.0,0.00085946]
[1641860999550,0.39073491,41706.0,41701.0,0.003]
[1641860999753,0.39073491,41706.0,41701.0,0.00385946]
[1641861000153,0.45792728,41706.0,41701.0,0.00385946]
[1641861000697,0.45792728,41706.0,41701.0,0.00085946]
[1641861001000,0.059975,41703.0,41701.0,0.00085946]
[1641861001396,0.059975,41704.0,41701.0,0.00085946]
[1641861001597,0.33798728,41706.0,41701.0,0.00085946]
[1641861001997,0.33798728,41706.0,41699.0,0.33155355]
[1641861002200,0.33798728,41706.0,41701.0,0.00085946]
[1641861002599,0.39795728,41706.0,41701.0,0.00085946]
[1641861002998,0.33798728,41706.0,41701.0,0.00085946]
[1641861003199,0.33798728,41706.0,41699.0,0.33155355]
[1641861003501,0.33798728,41706.0,41701.0,0.00085946]
[1641861003704,0.25336745,41705.0,41701.0,0.00085946]
[1641861003901,0.00127007,41703.0,41701.0,0.00085946]
[1641861004153,0.048,41702.0,41701.0,0.00085946]
[1641861004354,0.43818612,41702.0,41692.0,1.2512767]
[1641861004554,0.00121984,41697.0,41694.0,0.00343843]
[1641861004756,0.46424152,41696.0,41694.0,0.00343843]
[1641861004954,0.7938169,41696.0,41694.0,0.00343843]
[1641861005155,0.46424152,41696.0,41694.0,0.00343843]
[1641861005354,0.52422952,41696.0,41694.0,0.00343843]
[1641861005554,0.53522952,41696.0,41692.0,0.64054019]
[1641861005754,0.53522952,41696.0,41693.0,0.0004461]
[1641861006158,0.059992,41694.0,41693.0,0.0004461]
[1641861006856,0.059992,41694.0,41692.0,0.64054019]
[1641861007555,0.00129984,41693.0,41692.0,0.64054019]
[1641861007996,0.4627993,41693.0,41692.0,0.64054019]
[1641861008397,0.5627993,41693.0,41692.0,0.64054019]
[1641861009097,0.10129984,41693.0,41692.0,0.64054019]
[1641861009398,0.13450193,41693.0,41692.0,0.64054019]
[1641861009597,0.05570402,41693.0,41692.0,0.64054019]
[1641861010202,0.35852784,41693.0,41692.0,0.64054019]
[1641861010397,0.69592553,41693.0,41692.0,0.64054019]
[1641861010597,0.49310171,41693.0,41692.0,0.64054019]
[1641861010797,0.7823746,41693.0,41692.0,0.64054019]
[1641861011299,0.04370402,41693.0,41692.0,0.64054019]
[1641861011553,0.05970402,41693.0,41692.0,0.64054019]
[1641861012555,0.4844933,41693.0,41692.0,0.64054019]
[1641861012758,0.04370402,41693.0,41692.0,0.64054019]
[1641861013157,0.04240418,41693.0,41692.0,0.64054019]
[1641861013557,0.05940418,41693.0,41692.0,0.64054019]
[1641861013757,0.05940418,41693.0,41692.0,0.90450842]
[1641861013960,0.05940418,41693.0,41692.0,0.64054019]
[1641861014756,0.04240418,41693.0,41692.0,0.64054019]
[1641861015507,0.05340418,41693.0,41692.0,0.64054019]
[1641861015710,0.3,41692.0,41678.0,0.2904]
[1641861015910,0.00123095,41688.0,41679.0,0.001]
[1641861016110,0.00123095,41688.0,41675.0,0.55698105]
[1641861016111,0.00124036,41677.0,41675.0,0.55698105]
[1641861016310,0.04926498,41676.0,41675.0,0.33167071]
[1641861016513,0.51058647,41676.0,41675.0,0.33167071]
[1641861016717,1.20263132,41676.0,41673.0,0.76088433]
[1641861016913,1.67478322,41676.0,41673.0,0.0483584]
[1641861017516,1.68478322,41676.0,41673.0,0.0483584]
[1641861017713,2.02415502,41676.0,41673.0,0.0483584]
[1641861018314,1.267,41675.0,41673.0,0.0483584]
[1641861018514,1.415,41675.0,41674.0,0.0022]
[1641861018716,0.08125051,41672.0,41671.0,0.0011]
[1641861018915,0.55521806,41672.0,41671.0,0.0011]
[1641861019149,0.65521806,41672.0,41671.0,0.0011]
[1641861019546,0.48521806,41672.0,41671.0,0.0011]
[1641861019748,0.05925051,41672.0,41671.0,0.0011]
[1641861019948,0.058,41672.0,41671.0,0.0011]
[1641861020950,0.048,41672.0,41671.0,0.0011]
[1641861021550,0.09020209,41672.0,41671.0,0.0011]
[1641861021752,0.06340418,41672.0,41671.0,0.0011]
[1641861022651,0.06340418,41672.0,41671.0,0.27694694]
[1641861022899,0.04240418,41672.0,41671.0,0.27791887]
[1641861023099,0.04240418,41672.0,41671.0,0.0011]
[1641861023300,0.04392676,41672.0,41671.0,0.0011]
[1641861023497,0.04592676,41672.0,41671.0,0.0011]
[1641861024499,0.04592676,41672.0,41671.0,0.67490637]
[1641861024701,0.04392676,41672.0,41671.0,0.77290637]
[1641861024905,0.04392676,41672.0,41671.0,0.82290637]
[1641861025400,0.04392676,41672.0,41671.0,1.52290637]
[1641861025599,0.04392676,41672.0,41671.0,1.56990637]
[1641861025800,0.04392676,41672.0,41671.0,0.86990637]
[1641861026200,0.04392676,41672.0,41671.0,1.11990637]
[1641861026400,0.04392676,41672.0,41671.0,0.37556602]
[1641861026651,0.04392676,41672.0,41671.0,0.0961]
[1641861026853,0.04392676,41672.0,41671.0,0.0491]
[1641861027050,0.04392676,41672.0,41671.0,0.32622954]
[1641861027651,0.04392676,41672.0,41671.0,0.37222954]
[1641861027850,0.04392676,41672.0,41671.0,0.42222954]
[1641861028252,0.04392676,41672.0,41671.0,0.72222954]
[1641861028452,0.04392676,41672.0,41671.0,0.4451]
[1641861028652,0.04392676,41672.0,41671.0,0.9019446]
[1641861029457,0.04392676,41672.0,41671.0,0.8559446]
[1641861029655,0.04392676,41672.0,41671.0,0.9089446]
[1641861030498,0.04392676,41672.0,41671.0,0.8029446]
[1641861030898,0.04392676,41672.0,41671.0,0.7499446]
[1641861031099,0.04392676,41672.0,41671.0,0.7979446]
[1641861031501,0.04392676,41672.0,41671.0,1.1267946]
[1641861031699,0.04392676,41672.0,41671.0,1.43269906]
[1641861031900,0.04392676,41672.0,41671.0,1.1217946]
[1641861032105,0.04392676,41672.0,41671.0,2.02703368]
[1641861032299,0.04392676,41672.0,41671.0,2.72703368]
[1641861032500,5.0,41676.0,41673.0,0.2]
[1641861032701,4.40499686,41676.0,41675.0,2.2501]
[1641861032900,0.00211196,41686.0,41677.0,0.2]
[1641861033103,0.00211196,41686.0,41685.0,2.0001]
[1641861033104,0.00084531,41686.0,41685.0,2.0001]
[1641861033301,0.60123189,41710.0,41686.0,0.00121996]
[1641861033302,0.5685,41709.0,41686.0,0.00121996]
[1641861033501,0.25953957,41704.0,41694.0,0.6001]
[1641861033703,0.25953957,41704.0,41695.0,0.90749311]
[1641861033903,0.25953957,41704.0,41695.0,0.95749311]
[1641861034154,0.25953957,41704.0,41696.0,0.109959]
[1641861034355,0.25953957,41704.0,41697.0,0.048]
[1641861034758,0.00084585,41702.0,41697.0,0.048]
[1641861035155,2.11089687,41700.0,41697.0,0.048]
[1641861035355,0.00084585,41702.0,41697.0,0.048]
[1641861035555,0.25953957,41704.0,41697.0,0.055]
[1641861035755,0.00084584,41701.0,41697.0,0.055]
[1641861036356,0.00084584,41701.0,41698.0,0.27913075]
[1641861036556,0.00084584,41701.0,41699.0,0.048]
[1641861036756,0.25953957,41704.0,41700.0,0.65629251]
[1641861036956,0.1,41714.0,41701.0,0.048]
[1641861037162,0.00084585,41702.0,41701.0,1.398]
[1641861037365,0.00084585,41702.0,41701.0,1.821475]
[1641861037557,0.00084585,41702.0,41701.0,2.96055979]
[1641861037803,0.00338202,41718.0,41702.0,1.4]
[1641861037998,0.72143158,41719.0,41714.0,0.45242793]
[1641861038199,0.72143158,41719.0,41715.0,0.3445934]
[1641861038798,0.72143158,41719.0,41716.0,0.65970224]
[1641861038998,0.30143158,41719.0,41717.0,0.048]
[1641861039601,0.30143158,41719.0,41717.0,0.055]
[1641861040802,0.30143158,41719.0,41717.0,0.048]
[1641861041652,0.30143158,41719.0,41717.0,0.055]
[1641861042855,0.30143158,41719.0,41717.0,0.048]
[1641861043457,0.045,41719.0,41718.0,1.28535412]
[1641861043759,0.045,41719.0,41718.0,1.45647412]
[1641861043957,0.045,41719.0,41718.0,2.67845764]
[1641861044158,0.045,41719.0,41718.0,2.67975171]
[1641861044358,1.42110819,41739.0,41718.0,2.67975171]
[1641861044359,7.67e-06,41721.0,41720.0,0.2]
[1641861044558,0.00335017,41727.0,41721.0,0.2]
[1641861044758,0.00335017,41727.0,41726.0,2.31504218]
[1641861044961,1.02123189,41741.0,41727.0,1.4]
[1641861045161,0.42,41741.0,41734.0,0.0012213]
[1641861045406,0.42,41741.0,41739.0,0.45714276]
[1641861045610,0.42,41741.0,41740.0,0.048]
[1641861046606,0.52,41741.0,41740.0,0.048]
[1641861046805,0.78662944,41741.0,41740.0,0.048]
[1641861047212,0.42,41741.0,41740.0,0.048]
[1641861047610,0.42,41741.0,41740.0,0.34800611]
[1641861047810,0.009609,41743.0,41740.0,0.39800611]
[1641861048010,0.0999,41754.0,41746.0,0.059886]
[1641861048208,0.0999,41754.0,41753.0,1.36963573]
[1641861048409,0.0999,41754.0,41753.0,1.49852682]
[1641861048610,0.0999,41754.0,41753.0,0.693368]
[1641861049351,0.0999,41754.0,41753.0,0.421475]
[1641861049552,0.0999,41754.0,41753.0,0.429475]
[1641861049754,0.0999,41754.0,41753.0,0.80617103]
[1641861049953,0.0999,41754.0,41753.0,0.85617103]
[1641861050358,0.0001,41754.0,41753.0,1.95746098]
[1641861050553,0.00079718,41756.0,41753.0,0.90746098]
[1641861050753,0.00079718,41756.0,41754.0,0.373475]
[1641861050954,0.00079718,41756.0,41755.0,1.82272261]
[1641861051154,0.00011173,41762.0,41755.0,2.12620085]
[1641861051354,0.00011173,41762.0,41755.0,2.17620085]
[1641861051555,0.00079719,41757.0,41755.0,0.79120085]
[1641861051755,0.00079719,41757.0,41756.0,1.473475]
[1641861051954,0.00079719,41757.0,41756.0,0.421475]
[1641861052258,0.00079719,41757.0,41756.0,0.96529568]
[1641861052455,0.00011173,41762.0,41756.0,1.02645156]
[1641861052657,0.00079721,41759.0,41756.0,1.37502137]
[1641861052903,0.00079721,41759.0,41758.0,1.073475]
[1641861053102,0.42,41769.0,41763.0,0.37401814]
[1641861053399,0.31189058,41773.0,41763.0,0.42201814]
[1641861053602,0.1,41773.0,41763.0,0.052]
[1641861053800,0.42277733,41772.0,41763.0,0.052]
[1641861054003,0.00126312,41768.0,41763.0,0.052]
[1641861054901,0.00126312,41768.0,41760.0,0.05]
[1641861054902,0.29758816,41768.0,41760.0,0.05]
[1641861055102,0.29758816,41768.0,41763.0,0.00045501]
[1641861055902,0.00126312,41768.0,41763.0,0.00045501]
[1641861056101,0.00126312,41768.0,41763.0,0.06784]
[1641861056305,0.42,41774.0,41771.0,0.38523074]
[1641861056549,0.42,41774.0,41770.0,0.03149]
[1641861056949,0.42,41774.0,41772.0,0.29092738]
[1641861057251,0.42,41774.0,41772.0,0.43768738]
[1641861057449,0.42075942,41774.0,41772.0,0.43768738]
[1641861057749,0.42075942,41774.0,41773.0,0.373475]
[1641861057950,0.42075942,41774.0,41772.0,0.057]
[1641861058153,0.42075942,41774.0,41772.0,0.007]
[1641861058350,0.92006844,41773.0,41772.0,0.007]
[1641861058549,0.42,41774.0,41772.0,0.007]
[1641861058749,1.30666765,41773.0,41764.0,0.33953313]
[1641861058950,0.70666765,41773.0,41764.0,0.33953313]
[1641861059152,0.44922193,41773.0,41764.0,0.38953313]
[1641861059551,0.25059303,41772.0,41764.0,0.39953313]
[1641861059851,0.00075939,41771.0,41764.0,0.39953313]
[1641861060506,0.00075939,41771.0,41765.0,0.373475]
[1641861060906,0.25059303,41772.0,41765.0,0.373475]
[1641861061108,0.00075938,41770.0,41765.0,0.373475]
[1641861061310,0.00075938,41770.0,41764.0,0.05]
[1641861061510,0.45377362,41770.0,41763.0,0.00085884]
[1641861061707,0.55377362,41770.0,41765.0,0.027]
[1641861062107,0.55301424,41770.0,41765.0,0.027]
[1641861062307,0.33339909,41769.0,41765.0,0.027]
[1641861062507,0.43339909,41769.0,41765.0,0.027]
[1641861062709,0.119775,41767.0,41765.0,0.027]
[1641861062909,1.60949282,41766.0,41763.0,0.00085883]
[1641861063214,0.05988977,41765.0,41746.0,0.31469683]
[1641861063413,1.35128865,41766.0,41762.0,0.00085881]
[1641861063414,0.38754441,41764.0,41762.0,0.00085881]
[1641861063611,0.38754441,41764.0,41737.0,0.00124417]
[1641861063612,1.367,41763.0,41737.0,0.00124417]
[1641861063814,0.001234,41748.0,41729.0,0.0011]
[1641861064053,0.0599133,41746.0,41729.0,0.0011]
[1641861064252,0.048,41747.0,41729.0,0.0011]
[1641861064452,0.048,41747.0,41740.0,0.43807411]
[1641861064652,0.048,41747.0,41741.0,0.88105209]
[1641861064852,0.048,41747.0,41741.0,0.57179093]
[1641861065654,0.062,41747.0,41742.0,0.373475]
[1641861066056,0.062,41747.0,41741.0,0.88105209]
[1641861066253,0.062,41747.0,41742.0,0.373475]
[1641861066854,0.048,41747.0,41742.0,0.373475]
[1641861067254,0.048,41747.0,41742.0,0.37424916]
[1641861067454,0.0492157,41754.0,41742.0,0.37424916]
[1641861067656,0.006,41747.0,41742.0,0.05077416]
[1641861067903,0.006,41747.0,41743.0,0.473475]
[1641861068102,0.006,41747.0,41744.0,0.29297392]
[1641861068305,0.006,41747.0,41745.0,0.373475]
[1641861068503,0.006,41747.0,41746.0,1.5148385]
[1641861068707,0.006,41747.0,41746.0,1.8883135]
[1641861069006,0.0072152,41759.0,41746.0,1.89509627]
[1641861069212,0.00123869,41762.0,41758.0,0.31534496]
[1641861069409,0.00053235,41766.0,41758.0,0.31534496]
[1641861069410,0.29533993,41766.0,41759.0,0.29068876]
[1641861069607,0.29594025,41766.0,41759.0,0.29068876]
[1641861069907,0.00060032,41766.0,41761.0,0.47532622]
[1641861070605,0.00124477,41768.0,41759.0,0.29068876]
[1641861070805,0.32539378,41765.0,41760.0,0.00079936]
[1641861071559,0.37639378,41765.0,41760.0,0.00479936]
[1641861071761,0.35016189,41763.0,41760.0,0.004]
[1641861071959,0.35016189,41763.0,41760.0,0.00479935]
[1641861072160,0.37639378,41765.0,41760.0,0.00479935]
[1641861072861,0.37639378,41765.0,41760.0,0.32367888]
[1641861072862,0.32539378,41765.0,41760.0,0.32367888]
[1641861073061,0.00124477,41768.0,41760.0,0.39431953]
[1641861073261,0.00057993,41766.0,41760.0,0.39511125]
[1641861073460,0.00057993,41766.0,41760.0,0.44511125]
[1641861073663,0.00057993,41766.0,41761.0,0.373475]
[1641861074061,0.00057993,41766.0,41765.0,0.28609592]
[1641861074263,0.036,41768.0,41765.0,0.65957092]
[1641861074463,0.036,41768.0,41766.0,0.373475]
[1641861074762,0.036,41768.0,41765.0,0.02837]
[1641861074963,0.4212695,41774.0,41765.0,0.02837]
[1641861075163,0.5212695,41774.0,41765.0,0.02837]
[1641861075608,0.00058,41772.0,41765.0,0.03537]
[1641861076208,0.00058,41772.0,41766.0,0.24717164]
[1641861076709,0.00059012,41771.0,41765.0,0.03537]
[1641861076910,0.00121462,41770.0,41760.0,0.04879553]
[1641861077212,0.059878,41766.0,41760.0,0.04879553]
[1641861077609,0.059878,41766.0,41760.0,0.05679553]
[1641861077907,0.06046807,41766.0,41760.0,0.05679548]
[1641861078308,0.00059007,41766.0,41760.0,0.05679548]
[1641861078509,0.00059007,41766.0,41761.0,0.373475]
[1641861078808,0.00059007,41766.0,41761.0,0.462475]
[1641861079054,0.52126969,41774.0,41761.0,0.462475]
[1641861079253,0.00059008,41766.0,41765.0,0.32760054]
[1641861079455,0.00059008,41766.0,41765.0,0.75566465]
[1641861080254,0.58113669,41774.0,41765.0,1.12913965]
[1641861080453,0.00058313,41768.0,41765.0,0.75566465]
[1641861081454,0.059871,41772.0,41765.0,0.75566465]
[1641861081658,0.00058314,41769.0,41765.0,0.43206411]
[1641861081854,0.00058314,41769.0,41765.0,0.004]
[1641861082056,0.06045914,41769.0,41765.0,0.004]
[1641861082657,0.26938809,41766.0,41765.0,0.004]
[1641861082904,0.26938809,41766.0,41760.0,0.00079293]
[1641861083104,0.15988,41768.0,41760.0,0.00079293]
[1641861083302,0.00058314,41769.0,41760.0,0.00079293]
[1641861083702,0.015,41768.0,41760.0,0.008]
[1641861083902,0.015,41768.0,41760.0,0.00879368]
[1641861084102,0.0005852,41767.0,41766.0,0.28486047]
[1641861084304,0.0005852,41767.0,41760.0,0.00879368]
[1641861084904,0.00129733,41769.0,41747.0,0.39069533]
[1641861085102,0.00129733,41769.0,41760.0,0.00079368]
[1641861085305,0.35586889,41764.0,41760.0,0.00079368]
[1641861085502,0.32604547,41763.0,41760.0,0.00079368]
[1641861085904,0.42604547,41763.0,41760.0,0.00079368]
[1641861086107,0.1,41763.0,41755.0,0.67599586]
[1641861086304,0.059889,41762.0,41759.0,0.00079367]
[1641861086563,0.059887,41761.0,41759.0,0.00079367]
[1641861087365,0.1,41765.0,41755.0,0.33502991]
[1641861087565,0.063,41761.0,41758.0,0.00079346]
[1641861088166,0.35595329,41761.0,41758.0,0.00079346]
[1641861088368,0.31287973,41760.0,41758.0,0.00079346]
[1641861088565,0.31287973,41760.0,41744.0,0.9776]
[1641861088566,0.41287973,41760.0,41744.0,0.9776]
[1641861088764,0.00845195,41757.0,41741.0,2.87875217]
[1641861088967,0.00845195,41757.0,41742.0,0.373475]
[1641861089167,0.00845195,41757.0,41751.0,0.53138241]
[1641861089368,0.06834395,41757.0,41751.0,0.53138241]
[1641861089574,0.06834395,41757.0,41751.0,0.53438241]
[1641861089766,0.05245195,41757.0,41751.0,0.53438241]
[1641861089965,0.05245195,41757.0,41752.0,0.00079352]
[1641861090615,0.11234395,41757.0,41752.0,0.00079352]
[1641861091011,0.11234395,41757.0,41741.0,2.87875217]
[1641861091012,0.11234395,41757.0,41747.0,0.30692262]
[1641861091212,0.06834395,41757.0,41752.0,0.0007936]
[1641861091714,0.07634395,41757.0,41752.0,0.0007936]
[1641861092115,0.07634395,41757.0,41750.0,0.33330666]
[1641861092311,0.07634395,41757.0,41752.0,0.0007936]
[1641861092712,0.13623995,41757.0,41752.0,0.0007936]
[1641861092912,0.2799543,41754.0,41752.0,0.0007936]
[1641861093111,0.2749543,41754.0,41752.0,0.0007936]
[1641861093312,0.40117002,41756.0,41745.0,0.27803929]
[1641861093512,0.059899,41751.0,41745.0,0.27803929]
[1641861093711,0.014,41754.0,41746.0,0.75445008]
[1641861093912,0.014,41754.0,41745.0,0.27803929]
[1641861094154,0.19045329,41754.0,41745.0,0.27803929]
[1641861094357,0.19045329,41754.0,41735.0,1.17402097]
[1641861094358,0.31420588,41753.0,41735.0,1.17402097]
[1641861094555,0.059906,41748.0,41735.0,1.17402097]
[1641861094857,0.059906,41748.0,41747.0,0.00070435]
[1641861095754,0.059906,41748.0,41744.0,0.32900736]
[1641861095755,0.070906,41748.0,41744.0,0.32900736]
[1641861095955,0.070906,41748.0,41745.0,0.00070437]
[1641861096957,0.059906,41748.0,41744.0,0.32900736]
[1641861097157,0.059906,41748.0,41744.0,0.32971174]
[1641861097363,0.119815,41748.0,41744.0,0.32971174]
[1641861097804,0.131815,41748.0,41744.0,0.32971174]
[1641861098000,0.071906,41748.0,41744.0,0.32971174]
[1641861098200,0.071906,41748.0,41741.0,2.89065217]
[1641861098400,0.071906,41748.0,41744.0,0.00070617]
[1641861098599,0.36524432,41748.0,41744.0,0.00070617]
[1641861098800,0.071906,41748.0,41744.0,0.00070617]
[1641861099099,0.159906,41748.0,41744.0,0.00070617]
[1641861099299,0.159906,41748.0,41741.0,2.89065217]
[1641861099300,0.219815,41748.0,41741.0,2.89065217]
[1641861099499,0.219815,41748.0,41741.0,3.15538438]
[1641861099700,0.230815,41748.0,41744.0,0.00070617]
[1641861100199,0.130815,41748.0,41744.0,0.00070617]
[1641861100600,0.130815,41748.0,41741.0,3.15538438]
[1641861100800,0.130815,41748.0,41744.0,0.00070617]
[1641861101850,0.130815,41748.0,41741.0,3.15538438]
[1641861102049,0.130815,41748.0,41744.0,0.00070968]
[1641861102654,0.011,41748.0,41744.0,0.00070968]
[1641861102952,0.011,41748.0,41741.0,3.15538438]
[1641861102953,0.1,41750.0,41741.0,3.15538438]
[1641861103253,0.06110528,41753.0,41741.0,3.15538438]
[1641861103254,0.06110528,41753.0,41744.0,0.00070968]
[1641861103652,0.005,41750.0,41748.0,0.25101696]
[1641861105057,0.06110528,41753.0,41747.0,0.00070966]
[1641861105310,0.06110528,41753.0,41741.0,2.89065217]
[1641861105502,0.06110528,41753.0,41748.0,0.00070804]
[1641861105702,0.08810528,41753.0,41748.0,0.00070804]
[1641861105902,0.059903,41752.0,41748.0,0.00070804]
[1641861106504,0.059903,41752.0,41742.0,0.31043576]
[1641861106805,0.059903,41752.0,41748.0,0.00070804]
[1641861107805,0.084903,41752.0,41742.0,0.36043576]
[1641861108004,0.084903,41752.0,41748.0,0.00070804]
[1641861109057,0.059903,41752.0,41742.0,0.36043576]
[1641861109257,0.059904,41748.0,41742.0,0.36043576]
[1641861110457,0.059904,41748.0,41743.0,0.0007086]
[1641861111460,0.059904,41748.0,41742.0,0.31043576]
[1641861111658,0.059904,41748.0,41743.0,0.0007086]
[1641861111659,0.093904,41748.0,41743.0,0.0007086]
[1641861112567,0.093904,41748.0,41742.0,0.31043576]
[1641861112808,0.093904,41748.0,41743.0,0.00070846]
[1641861113004,0.059904,41748.0,41743.0,0.00070846]
[1641861113201,0.054904,41748.0,41743.0,0.00070846]
[1641861113700,0.054904,41748.0,41742.0,0.31043576]
[1641861113701,0.081904,41748.0,41742.0,0.31043576]
[1641861113902,0.081904,41748.0,41743.0,0.55614709]
[1641861114905,0.081904,41748.0,41743.0,0.55543863]
[1641861115104,0.054904,41748.0,41743.0,0.55614709]
[1641861115706,0.066904,41748.0,41743.0,0.55614709]
[1641861116107,0.012,41748.0,41744.0,0.373475]
[1641861116309,0.012,41748.0,41745.0,0.28628913]
[1641861116558,0.012,41748.0,41746.0,0.81344962]
[1641861116759,0.012,41748.0,41746.0,0.8121667]
[1641861116958,0.60123189,41755.0,41746.0,0.8121667]
[1641861117160,0.31984615,41755.0,41746.0,0.4386917]
[1641861117561,0.31984615,41755.0,41748.0,0.00070845]
[1641861117760,0.059899,41753.0,41748.0,0.00070845]
[1641861118562,0.059899,41753.0,41746.0,0.007]
[1641861118762,0.28796241,41749.0,41748.0,0.00070845]
[1641861119762,0.33396241,41749.0,41748.0,0.005]
[1641861119963,0.046,41749.0,41748.0,0.005]
[1641861121002,0.046,41749.0,41743.0,0.55543863]
[1641861121003,0.517296,41751.0,41743.0,0.55543863]
[1641861121202,0.517296,41751.0,41746.0,0.00070844]
[1641861121203,0.059907,41747.0,41746.0,0.00070844]
[1641861121802,0.130907,41747.0,41746.0,0.00070844]
[1641861122205,0.130907,41747.0,41743.0,0.55543863]
[1641861122404,0.130907,41747.0,41744.0,0.00070846]
[1641861123207,0.059907,41747.0,41744.0,0.00070846]
[1641861123406,0.059907,41747.0,41743.0,0.55543863]
[1641861123608,0.059907,41747.0,41743.0,0.55614712]
[1641861123806,0.059907,41747.0,41744.0,0.003]
[1641861123807,0.117907,41747.0,41744.0,0.003]
[1641861124056,0.24685667,41746.0,41744.0,0.003]
[1641861124257,0.58882866,41745.0,41744.0,0.003]
[1641861124455,0.4,41745.0,41744.0,0.003]
[1641861124656,0.5,41745.0,41744.0,0.003]
[1641861125055,0.93546851,41745.0,41743.0,0.55543863]
[1641861125254,0.99538951,41745.0,41743.0,0.55543863]
[1641861125760,0.7763967,41744.0,41743.0,0.55543863]
[1641861126256,0.8763967,41744.0,41743.0,0.55543863]
[1641861127657,1.07762859,41744.0,41743.0,0.55543863]
[1641861127906,1.13262859,41744.0,41743.0,0.55543863]
[1641861128314,0.75623189,41744.0,41743.0,0.55543863]
[1641861128508,0.65623189,41744.0,41743.0,0.55543863]
[1641861128905,0.60123189,41744.0,41743.0,0.55543863]
[1641861129709,0.67123189,41744.0,41743.0,0.55543863]
[1641861130110,0.07,41744.0,41743.0,0.55543863]